[Event "German Team Cup Finals 2022"]
[Site "Baden -Baden"]
[Date "2022.07.17"]
[Round "2.4"]
[White "Stevic, Hrvoje"]
[Black "Meier, Georg"]
[Result "1/2-1/2"]
[ECO "C10"]
[WhiteElo "2563"]
[BlackElo "2613"]
[Annotator "ChessBase"]
[PlyCount "37"]
[EventDate "2022.07.16"]
[EventType "team-tourn"]
[EventCountry "GER"]
[SourceTitle "playchess.com"]
[Source "ChessBase"]
[SourceQuality "1"]
[TimeControl "5400+30"]

1. e4 {[%emt 0:00:00]} e6 {[%emt 0:00:00]} 2. d4 {[%emt 0:00:00]} d5 {[%emt 0:00:00]} 3. Nd2 {[%emt 0:00:00]} dxe4 {[%emt 0:00:00]} 4. Nxe4 {[%emt 0:00:00]} Nd7 {[%emt 0:00:00]} 5. Nf3 {[%emt 0:00:00]} Ngf6 {[%emt 0:00:00]} 6. Nxf6+ {[%emt 0:00:00]} Nxf6 {[%emt 0:00:00]} 7. c3 {[%emt 0:00:00]} Be7 {[%emt 0:00:00]} 8. Bf4 {[%emt 0:00:00]} O-O {[%emt 0:00:00]} 9. Bd3 {[%emt 0:00:00]} b6 {[%emt 0:00:00]} 10. Qe2 {[%emt 0:00:00]} Bb7 {[%emt 0:00:00]} 11. O-O-O {[%emt 0:00:00]} Qc8 {[%emt 0:00:00]} 12. h4 {[%emt 0:00:00]} c5 {[%emt 0:00:00]} 13. Be5 {[%emt 0:00:00]} Rd8 {[%emt 0:02:00]} 14. Kb1 {[%emt 0:00:00]} Bd5 {[%emt 0:11:30]} 15. Ba6 {[%emt 0:41:00]} Qc6 {[%emt 0:05:30]} 16. Bb5 {[%emt 0:01:30]} Qb7 {[%emt 0:00:00]} 17. Ba6 {[%emt 0:00:30]} Qc6 {[%emt 0:00:00]} 18. Bb5 {[%emt 0:00:30]} Qb7 {[%emt 0:00:00]} 19. Ba6 {[%emt 0:00:30]} 1/2-1/2

[Event "German Team Cup Finals 2022"]
[Site "Baden -Baden"]
[Date "2022.07.17"]
[Round "2.5"]
[White "Zaragatski, Ilja"]
[Black "Zilka, Stepan"]
[Result "0-1"]
[ECO "A61"]
[WhiteElo "2512"]
[BlackElo "2593"]
[Annotator "ChessBase"]
[PlyCount "88"]
[EventDate "2022.07.16"]
[EventType "team-tourn"]
[EventCountry "GER"]
[SourceTitle "playchess.com"]
[Source "ChessBase"]
[SourceQuality "1"]
[TimeControl "5400+30"]

1. d4 {[%emt 0:00:00]} Nf6 {[%emt 0:00:00]} 2. Nf3 {[%emt 0:00:00]} e6 {[%emt 0:00:00]} 3. c4 {[%emt 0:00:00]} c5 {[%emt 0:00:00]} 4. d5 {[%emt 0:00:00]} exd5 {[%emt 0:00:00]} 5. cxd5 {[%emt 0:00:00]} d6 {[%emt 0:00:00]} 6. Nc3 {[%emt 0:00:00]} g6 {[%emt 0:00:00]} 7. e3 {[%emt 0:00:00]} Bg7 {[%emt 0:00:00]} 8. Be2 {[%emt 0:00:00]} O-O {[%emt 0:00:00]} 9. O-O {[%emt 0:00:00]} a6 {[%emt 0:00:00]} 10. a4 {[%emt 0:00:00]} Bg4 {[%emt 0:00:00]} 11. h3 {[%emt 0:00:00]} Bxf3 {[%emt 0:00:00]} 12. Bxf3 {[%emt 0:00:00]} Nbd7 {[%emt 0:00:00]} 13. Bd2 {[%emt 0:01:00]} Re8 {[%emt 0:01:00]} 14. Qc2 {[%emt 0:01:30]} c4 {[%emt 0:03:30]} 15. Be2 {[%emt 0:10:30]} Rc8 {[%emt 0:00:30]} 16. a5 {[%emt 0:11:30]} Rc5 {[%emt 0:09:30]} 17. Na4 {[%emt 0:21:30]} Rc7 {[%emt 0:01:30]} 18. Bxc4 {[%emt 0:17:30]} Ne5 {[%emt 0:00:30]} 19. b3 {[%emt 0:04:30]} Nxd5 {[%emt 0:01:30]} 20. Rac1 {[%emt 0:02:30]} Nf6 {[%emt 0:06:30]} 21. Qb1 {[%emt 0:03:30]} d5 {[%emt 0:04:30]} 22. Be2 {[%emt 0:00:30]} Ne4 {[%emt 0:01:30]} 23. Be1 {[%emt 0:05:30]} Rxc1 {[%emt 0:02:30]} 24. Qxc1 {[%emt 0:00:30]} d4 {[%emt 0:00:30]} 25. exd4 {[%emt 0:00:30]} Qxd4 {[%emt 0:01:30]} 26. Qe3 {[%emt 0:13:25]} Qxe3 {[%emt 0:01:30]} 27. fxe3 {[%emt 0:00:02]} Bh6 {[%emt 0:00:30]} 28. Nc3 {[%emt 0:02:53]} Bxe3+ {[%emt 0:00:30]} 29. Kh1 {[%emt 0:01:21]} Nd2 {[%emt 0:09:30]} 30. Nd5 {[%emt 0:05:14]} Nd7 {[%emt 0:00:00]} 31. Bxd2 {[%emt 0:01:19]} Bxd2 {[%emt 0:00:00]} 32. Bc4 {[%emt 0:00:39]} Kg7 {[%emt 0:10:30]} 33. b4 {[%emt 0:00:23]} Ne5 {[%emt 0:01:30]} 34. Ba2 {[%emt 0:00:32]} Nc6 {[%emt 0:06:30]} 35. Rb1 {[%emt 0:00:40]} Re1+ {[%emt 0:03:30]} 36. Rxe1 {[%emt 0:00:01]} Bxe1 {[%emt 0:00:00]} 37. b5 {[%emt 0:00:34]} axb5 {[%emt 0:00:00]} 38. Nc7 {[%emt 0:00:12]} b4 {[%emt 0:04:30]} 39. a6 {[%emt 0:01:06]} Bg3 {[%emt 0:11:30]} 40. Ne8+ {[%emt 0:00:26]} Kf8 {[%emt 0:00:00]} 41. Bd5 {[%emt 0:00:00]} b3 {[%emt 0:00:00]} 42. Bxb3 {[%emt 0:00:00]} Kxe8 {[%emt 0:00:00]} 43. Ba4 {[%emt 0:00:00]} Bb8 {[%emt 0:00:00]} 44. axb7 {[%emt 0:00:00]} Kd7 {[%emt 0:00:00]} 0-1

[Event "German Team Cup Finals 2022"]
[Site "Baden -Baden"]
[Date "2022.07.17"]
[Round "2.6"]
[White "Moussard, Jules"]
[Black "Kryvoruchko, Yuriy"]
[Result "1/2-1/2"]
[ECO "C54"]
[WhiteElo "2672"]
[BlackElo "2672"]
[Annotator "ChessBase"]
[PlyCount "102"]
[EventDate "2022.07.16"]
[EventType "team-tourn"]
[EventCountry "GER"]
[SourceTitle "playchess.com"]
[Source "ChessBase"]
[SourceQuality "1"]
[TimeControl "5400+30"]

1. e4 {[%emt 0:00:00]} e5 {[%emt 0:00:00]} 2. Nf3 {[%emt 0:00:00]} Nc6 {[%emt 0:00:00]} 3. Bc4 {[%emt 0:00:00]} Bc5 {[%emt 0:00:00]} 4. O-O {[%emt 0:00:00]} Nf6 {[%emt 0:00:00]} 5. d3 {[%emt 0:00:00]} O-O {[%emt 0:00:00]} 6. h3 {[%emt 0:00:00]} h6 {[%emt 0:00:00]} 7. Re1 {[%emt 0:00:00]} d6 {[%emt 0:00:00]} 8. c3 {[%emt 0:00:00]} a6 {[%emt 0:00:00]} 9. a4 {[%emt 0:00:00]} Ba7 {[%emt 0:00:00]} 10. Nbd2 {[%emt 0:00:00]} Re8 {[%emt 0:00:00]} 11. b4 {[%emt 0:00:00]} Be6 {[%emt 0:00:00]} 12. Bxe6 {[%emt 0:00:00]} Rxe6 {[%emt 0:00:00]} 13. Qc2 {[%emt 0:00:00]} Qd7 {[%emt 0:00:00]} 14. Rb1 {[%emt 0:00:00]} b5 {[%emt 0:00:00]} 15. Ra1 {[%emt 0:00:00]} Ree8 {[%emt 0:00:00]} 16. Nf1 {[%emt 0:02:30]} Rad8 {[%emt 0:03:30]} 17. Bd2 {[%emt 0:10:30]} d5 {[%emt 0:17:30]} 18. Ng3 {[%emt 0:01:30]} Bb6 {[%emt 0:02:30]} 19. a5 {[%emt 0:06:30]} Ba7 {[%emt 0:00:00]} 20. Rac1 {[%emt 0:04:30]} Re6 {[%emt 0:16:00]} 21. c4 {[%emt 0:09:30]} bxc4 {[%emt 0:14:30]} 22. exd5 {[%emt 0:06:30]} Qxd5 {[%emt 0:06:30]} 23. dxc4 {[%emt 0:00:30]} Qd3 {[%emt 0:01:30]} 24. b5 {[%emt 0:08:30]} e4 {[%emt 0:17:30]} 25. Bf4 {[%emt 0:33:32]} Qxc2 {[%emt 0:11:21]} 26. Rxc2 {[%emt 0:00:08]} axb5 {[%emt 0:02:47]} 27. cxb5 {[%emt 0:01:58]} Nxa5 {[%emt 0:01:05]} 28. Bxc7 {[%emt 0:05:18]} Rc8 {[%emt 0:02:05]} 29. b6 {[%emt 0:00:23]} Bxb6 {[%emt 0:00:54]} 30. Bxb6 {[%emt 0:00:04]} Rxc2 {[%emt 0:00:05]} 31. Nd4 {[%emt 0:00:11]} Rxb6 {[%emt 0:01:41]} 32. Nxc2 {[%emt 0:00:05]} Re6 {[%emt 0:02:55]} 33. Nd4 {[%emt 0:00:10]} Re8 {[%emt 0:01:24]} 34. Ndf5 {[%emt 0:00:04]} Re6 {[%emt 0:01:04]} 35. Nd4 {[%emt 0:00:05]} Re8 {[%emt 0:00:04]} 36. Ndf5 {[%emt 0:00:00]} Nc4 {[%emt 0:02:21]} 37. Rc1 {[%emt 0:02:14]} Nb6 {[%emt 0:00:25]} 38. Nd6 {[%emt 0:03:21]} Re6 {[%emt 0:00:39]} 39. Rc6 {[%emt 0:00:06]} Nbd7 {[%emt 0:00:18]} 40. Ngf5 {[%emt 0:05:55]} Ne5 {[%emt 0:00:52]} 41. Rc8+ {[%emt 0:03:32]} Kh7 {[%emt 0:00:06]} 42. Rc7 {[%emt 0:00:00]} h5 {[%emt 0:00:00]} 43. Kf1 {[%emt 0:00:00]} g5 {[%emt 0:00:00]} 44. Re7 {[%emt 0:00:00]} Rxe7 {[%emt 0:00:00]} 45. Nxe7 {[%emt 0:00:00]} h4 {[%emt 0:00:00]} 46. Nef5 {[%emt 0:00:00]} Kg6 {[%emt 0:00:00]} 47. Ne7+ {[%emt 0:00:00]} Kg7 {[%emt 0:00:00]} 48. Nef5+ {[%emt 0:00:00]} Kg6 {[%emt 0:00:00]} 49. Ne7+ {[%emt 0:00:00]} Kh5 {[%emt 0:00:00]} 50. Ke2 {[%emt 0:00:00]} Ng6 {[%emt 0:00:00]} 51. Nxg6 {[%emt 0:00:00]} Kxg6 {[%emt 0:00:00]} 1/2-1/2

[Event "German Team Cup Finals 2022"]
[Site "Baden -Baden"]
[Date "2022.07.17"]
[Round "2.7"]
[White "Graf, Alexander"]
[Black "Fedorchuk, Sergey A."]
[Result "1/2-1/2"]
[ECO "A13"]
[WhiteElo "2562"]
[BlackElo "2612"]
[Annotator "ChessBase"]
[PlyCount "82"]
[EventDate "2022.07.16"]
[EventType "team-tourn"]
[EventCountry "GER"]
[SourceTitle "playchess.com"]
[Source "ChessBase"]
[SourceQuality "1"]
[TimeControl "5400+30"]

1. Nf3 {[%emt 0:00:00]} Nf6 {[%emt 0:00:00]} 2. g3 {[%emt 0:00:00]} b5 {[%emt 0:00:00]} 3. Bg2 {[%emt 0:00:00]} Bb7 {[%emt 0:00:00]} 4. O-O {[%emt 0:00:00]} e6 {[%emt 0:00:00]} 5. b3 {[%emt 0:01:00]} c5 {[%emt 0:03:00]} 6. c4 {[%emt 0:02:30]} a6 {[%emt 0:01:30]} 7. Nc3 {[%emt 0:00:00]} Qb6 {[%emt 0:00:00]} 8. e3 {[%emt 0:01:00]} Be7 {[%emt 0:07:00]} 9. Qe2 {[%emt 0:00:00]} Ne4 {[%emt 0:02:30]} 10. Nxe4 {[%emt 0:07:00]} Bxe4 {[%emt 0:00:30]} 11. Bb2 {[%emt 0:04:30]} O-O {[%emt 0:03:30]} 12. Rac1 {[%emt 0:01:30]} d6 {[%emt 0:09:30]} 13. d3 {[%emt 0:12:30]} Bb7 {[%emt 0:02:30]} 14. Rfd1 {[%emt 0:01:30]} Nd7 {[%emt 0:13:30]} 15. d4 {[%emt 0:00:00]} bxc4 {[%emt 0:00:30]} 16. dxc5 {[%emt 0:02:00]} Nxc5 {[%emt 0:02:30]} 17. Qxc4 {[%emt 0:06:30]} Rfc8 {[%emt 0:03:30]} 18. Qg4 {[%emt 0:03:30]} Bf8 {[%emt 0:01:30]} 19. Bd4 {[%emt 0:08:30]} h6 {[%emt 0:11:30]} 20. Ne1 {[%emt 0:04:30]} Bxg2 {[%emt 0:05:30]} 21. Nxg2 {[%emt 0:00:30]} Qa5 {[%emt 0:02:30]} 22. Nf4 {[%emt 0:02:30]} e5 {[%emt 0:27:28]} 23. Bxc5 {[%emt 0:09:30]} Rxc5 {[%emt 0:00:04]} 24. Rxc5 {[%emt 0:04:30]} Qxc5 {[%emt 0:00:03]} 25. Nd5 {[%emt 0:00:30]} Qc2 {[%emt 0:00:33]} 26. Kf1 {[%emt 0:04:30]} a5 {[%emt 0:02:44]} 27. Qe2 {[%emt 0:00:30]} Rc8 {[%emt 0:00:54]} 28. e4 {[%emt 0:02:30]} f5 {[%emt 0:00:45]} 29. exf5 {[%emt 0:01:30]} Qxf5 {[%emt 0:00:03]} 30. Ne3 {[%emt 0:00:30]} Qe4 {[%emt 0:00:30]} 31. Kg1 {[%emt 0:02:30]} Rc5 {[%emt 0:00:39]} 32. Qd3 {[%emt 0:00:30]} Qxd3 {[%emt 0:00:23]} 33. Rxd3 {[%emt 0:00:30]} Kf7 {[%emt 0:00:17]} 34. f4 {[%emt 0:06:07]} exf4 {[%emt 0:00:56]} 35. gxf4 {[%emt 0:00:05]} Ke6 {[%emt 0:00:05]} 36. Kg2 {[%emt 0:00:16]} d5 {[%emt 0:01:02]} 37. a3 {[%emt 0:01:20]} Be7 {[%emt 0:00:47]} 38. b4 {[%emt 0:00:40]} axb4 {[%emt 0:00:32]} 39. axb4 {[%emt 0:00:01]} Rb5 {[%emt 0:00:21]} 40. Nc2 {[%emt 0:00:02]} Bf6 {[%emt 0:00:24]} 41. Nd4+ {[%emt 0:01:58]} Bxd4 {[%emt 0:00:24]} 1/2-1/2

[Event "German Team Cup Finals 2022"]
[Site "Baden -Baden"]
[Date "2022.07.17"]
[Round "2.8"]
[White "Wagner, Dennis"]
[Black "Dautov, Rustem"]
[Result "1/2-1/2"]
[ECO "B12"]
[WhiteElo "2569"]
[BlackElo "2591"]
[Annotator "ChessBase"]
[PlyCount "74"]
[EventDate "2022.07.16"]
[EventType "team-tourn"]
[EventCountry "GER"]
[SourceTitle "playchess.com"]
[Source "ChessBase"]
[SourceQuality "1"]
[TimeControl "5400+30"]

1. e4 {[%emt 0:00:00]} c6 {[%emt 0:00:00]} 2. d4 {[%emt 0:00:00]} d5 {[%emt 0:00:00]} 3. e5 {[%emt 0:00:00]} Bf5 {[%emt 0:00:00]} 4. Nf3 {[%emt 0:00:00]} e6 {[%emt 0:00:00]} 5. Be2 {[%emt 0:00:00]} c5 {[%emt 0:00:00]} 6. Be3 {[%emt 0:00:00]} cxd4 {[%emt 0:00:00]} 7. Nxd4 {[%emt 0:00:00]} Ne7 {[%emt 0:00:00]} 8. O-O {[%emt 0:00:00]} Nbc6 {[%emt 0:00:00]} 9. Bb5 {[%emt 0:00:00]} a6 {[%emt 0:00:00]} 10. Bxc6+ {[%emt 0:00:00]} bxc6 {[%emt 0:00:00]} 11. b4 {[%emt 0:00:00]} a5 {[%emt 0:08:00]} 12. b5 {[%emt 0:00:00]} c5 {[%emt 0:05:30]} 13. Nxf5 {[%emt 0:00:00]} Nxf5 {[%emt 0:00:30]} 14. c4 {[%emt 0:01:30]} Be7 {[%emt 0:12:30]} 15. Qd3 {[%emt 0:49:30]} O-O {[%emt 0:10:30]} 16. Nd2 {[%emt 0:06:30]} a4 {[%emt 0:05:30]} 17. Rfd1 {[%emt 0:04:30]} Nxe3 {[%emt 0:18:30]} 18. Qxe3 {[%emt 0:08:30]} Qb6 {[%emt 0:00:30]} 19. Rab1 {[%emt 0:03:30]} Rfd8 {[%emt 0:01:30]} 20. Qe2 {[%emt 0:06:30]} Ra7 {[%emt 0:14:30]} 21. Nf3 {[%emt 0:08:33]} a3 {[%emt 0:03:30]} 22. Qc2 {[%emt 0:00:05]} h6 {[%emt 0:09:39]} 23. h4 {[%emt 0:00:04]} Qa5 {[%emt 0:01:07]} 24. cxd5 {[%emt 0:08:51]} Rxd5 {[%emt 0:00:42]} 25. Rxd5 {[%emt 0:02:12]} exd5 {[%emt 0:00:02]} 26. Qf5 {[%emt 0:01:34]} Qb6 {[%emt 0:02:32]} 27. Qc8+ {[%emt 0:00:04]} Bf8 {[%emt 0:00:13]} 28. h5 {[%emt 0:00:58]} c4 {[%emt 0:01:35]} 29. Nd4 {[%emt 0:00:50]} Qxd4 {[%emt 0:02:15]} 30. b6 {[%emt 0:00:03]} Re7 {[%emt 0:00:33]} 31. b7 {[%emt 0:00:56]} Rxb7 {[%emt 0:00:06]} 32. Qxb7 {[%emt 0:00:50]} Qxe5 {[%emt 0:00:31]} 33. Qc8 {[%emt 0:00:43]} Qxh5 {[%emt 0:02:55]} 34. Rb8 {[%emt 0:00:07]} Qd1+ {[%emt 0:00:10]} 35. Kh2 {[%emt 0:00:02]} Qh5+ {[%emt 0:00:09]} 36. Kg1 {[%emt 0:00:06]} Qd1+ {[%emt 0:00:12]} 37. Kh2 {[%emt 0:00:03]} Qh5+ {[%emt 0:00:09]} 1/2-1/2